fUSD/lending_fUSD_20240630
["ID","MTS","AMOUNT","RATE_DAILY","PERIOD"]
[330745059,1719753041557,-500.0,0.00013808,3]
[330745060,1719753041568,-618.07,0.00013808,3]
[330745061,1719753041579,-250.0,0.00013808,3]
[330745062,1719753041590,-500.0,0.00013808,3]
[330745063,1719753041600,-500.0,0.00013808,3]
[330745064,1719753041611,-522.62,0.00013808,3]
[330745065,1719753041622,-500.0,0.00013808,3]
[330745066,1719753041633,-500.0,0.00013808,3]
[330745067,1719753041644,-500.0,0.00013808,3]
[330745068,1719753041654,-500.0,0.00013808,3]
[330745069,1719753041665,-500.0,0.00013808,3]
[330745070,1719753041675,-500.0,0.00013808,3]
[330745071,1719753041686,-500.0,0.00013808,3]
[330745072,1719753041697,-500.0,0.00013808,3]
[330745073,1719753041708,-745.23,0.00013808,3]
[330745074,1719753041718,-500.0,0.00013808,3]
[330745075,1719753041729,-500.0,0.00013808,3]
[330745076,1719753041740,-331.18535533,0.00013808,3]
[330745077,1719753041755,-692.38,0.00013808,3]
[330745078,1719753041766,-500.0,0.00013808,3]
[330745079,1719753041777,-500.0,0.00013808,3]
[330745080,1719753041788,-500.0,0.00013808,3]
[330745081,1719753041800,-500.0,0.00013808,3]
[330745082,1719753041811,-632.98,0.00013808,3]
[330745083,1719753041821,-500.0,0.00013808,3]
[330745084,1719753041833,-928.84,0.00013808,3]
[330745085,1719753041844,-500.0,0.00013808,3]
[330745086,1719753041855,-500.0,0.00013808,3]
[330745087,1719753041865,-500.0,0.00013808,3]
[330745088,1719753041875,-500.0,0.00013808,3]
[330745089,1719753041885,-500.0,0.00013808,3]
[330745090,1719753041896,-500.0,0.00013808,3]
[330745091,1719753041906,-500.0,0.00013808,3]
[330745092,1719753041916,-500.0,0.00013808,3]
[330745093,1719753041928,-500.0,0.00013808,3]
[330745094,1719753041939,-500.0,0.00013808,3]
[330745095,1719753041950,-500.0,0.00013808,3]
[330745096,1719753041960,-500.0,0.00013808,3]
[330745097,1719753041971,-500.0,0.00013808,3]
[330745098,1719753041981,-822.41,0.00013808,3]
[330745099,1719753041992,-500.0,0.00013808,3]
[330745100,1719753042003,-710.72,0.00013808,3]
[330745101,1719753042014,-500.0,0.00013808,3]
[330745102,1719753042026,-642.88,0.00013808,3]
[330745103,1719753042037,-500.0,0.00013808,3]
[330745104,1719753042047,-500.0,0.00013808,3]
[330745105,1719753042058,-500.0,0.00013808,3]
[330745106,1719753042069,-500.0,0.00013808,3]
[330745107,1719753042079,-207.85596524,0.00013808,3]
[330745108,1719753042091,-723.01,0.00013808,3]
[330745109,1719753042102,-540.1,0.00013808,3]
[330745110,1719753042112,-500.0,0.00013808,3]
[330745111,1719753042123,-500.0,0.00013808,3]
[330745112,1719753042134,-500.0,0.00013808,3]
[330745113,1719753042149,-794.57,0.00013808,3]
[330745114,1719753042159,-500.0,0.00013808,3]
[330745115,1719753042171,-586.32,0.00013808,3]
[330745116,1719753042182,-500.0,0.00013808,3]
[330745117,1719753042202,-500.0,0.00013808,3]
[330745118,1719753042219,-523.44,0.00013808,3]
[330745119,1719753042236,-500.0,0.00013808,3]
[330745120,1719753042250,-500.0,0.00013808,3]
[330745121,1719753042263,-500.0,0.00013808,3]
[330745122,1719753042277,-500.0,0.00013808,3]
[330745123,1719753042290,-758.93,0.00013808,3]
[330745124,1719753042304,-641.96,0.00013808,3]
[330745125,1719753042319,-500.0,0.00013808,3]
[330745126,1719753042335,-500.0,0.00013808,3]
[330745127,1719753042349,-500.0,0.00013808,3]
[330745128,1719753042364,-595.81,0.00013808,3]
[330745129,1719753042378,-594.18,0.00013808,3]
[330745130,1719753042392,-500.0,0.00013808,3]
[330745131,1719753042407,-564.85,0.00013808,3]
[330745132,1719753042422,-500.0,0.00013808,3]
[330745133,1719753042435,-500.0,0.00013808,3]
[330745134,1719753042447,-500.0,0.00013808,3]
[330745135,1719753042458,-500.0,0.00013808,3]
[330745136,1719753042471,-500.0,0.00013808,3]
[330745137,1719753042484,-500.0,0.00013808,3]
[330745138,1719753042498,-500.0,0.00013808,3]
[330745139,1719753042512,-500.0,0.00013808,3]
[330745140,1719753042525,-174.42,0.00013808,3]
[330745141,1719753042540,-528.9,0.00013808,3]
[330745142,1719753042556,-537.61,0.00013808,3]
[330745143,1719753042568,-532.35,0.00013808,3]
[330745144,1719753042579,-500.0,0.00013808,3]
[330745145,1719753042590,-500.0,0.00013808,3]
[330745146,1719753042602,-539.48,0.00013808,3]
[330745147,1719753042615,-500.0,0.00013808,3]
[330745148,1719753042630,-500.0,0.00013808,3]
[330745149,1719753042642,-700.48,0.00013808,3]
[330745151,1719753042654,-500.0,0.00013808,3]
[330745153,1719753042665,-500.0,0.00013808,3]
[330745154,1719753042680,-536.3,0.00013808,3]
[330745155,1719753042691,-549.63,0.00013808,3]
[330745156,1719753042703,-500.0,0.00013808,3]
[330745161,1719753042714,-500.0,0.00013808,3]
[330745164,1719753042726,-500.0,0.00013808,3]
[330745167,1719753042738,-500.0,0.00013808,3]
[330745169,1719753042755,-500.0,0.00013808,3]
[330745170,1719753042767,-500.0,0.00013808,3]
[330745171,1719753042779,-500.0,0.00013808,3]
[330745172,1719753042800,-500.0,0.00013808,3]
[330745173,1719753042811,-500.0,0.00013808,3]
[330745174,1719753042823,-551.0,0.00013808,3]
[330745175,1719753042839,-1705.28,0.00013808,3]
[330745177,1719753042850,-500.0,0.00013808,3]
[330745179,1719753042862,-592.17,0.00013808,3]
[330745181,1719753042873,-500.0,0.00013808,3]
[330745183,1719753042886,-500.0,0.00013808,3]
[330745184,1719753042898,-500.0,0.00013808,3]
[330745187,1719753042910,-659.36,0.00013808,3]
[330745188,1719753042922,-500.0,0.00013808,3]
[330745189,1719753042936,-580.25,0.00013808,3]
[330745190,1719753042950,-487.92,0.00013808,3]
[330745191,1719753042962,-500.0,0.00013808,3]
[330745192,1719753042974,-500.0,0.00013808,3]
[330745193,1719753042987,-500.0,0.00013808,3]
[330745194,1719753043001,-500.0,0.00013808,3]
[330745195,1719753043014,-500.0,0.00013808,3]
[330745196,1719753043026,-500.0,0.00013808,3]
[330745197,1719753043038,-500.0,0.00013808,3]
[330745198,1719753043050,-500.0,0.00013808,3]
[330745199,1719753043062,-500.0,0.00013808,3]
[330745200,1719753043076,-966.15,0.00013808,3]
[330745201,1719753043088,-500.0,0.00013808,3]
[330745202,1719753043100,-506.3980283,0.00013808,3]
[330745203,1719753043112,-500.0,0.00013808,3]
[330745204,1719753043124,-500.0,0.00013808,3]
[330745205,1719753043139,-952.57,0.00013808,3]
[330745206,1719753043151,-500.0,0.00013808,3]
[330745207,1719753043163,-500.0,0.00013808,3]
[330745208,1719753043175,-472.92097217,0.00013808,3]
[330745209,1719753043188,-500.0,0.00013808,3]
[330745210,1719753043201,-565.6,0.00013808,3]
[330745211,1719753043212,-500.0,0.00013808,3]
[330745212,1719753043224,-500.0,0.00013808,3]
[330745213,1719753043236,-501.25,0.00013808,3]
[330745214,1719753043248,-644.27,0.00013808,3]
[330745215,1719753043260,-500.0,0.00013808,3]
[330745216,1719753043273,-500.0,0.00013808,3]
[330745217,1719753043285,-554.12,0.00013808,3]
[330745218,1719753043296,-500.0,0.00013808,3]
[330745219,1719753043308,-204.68,0.00013808,3]
[330745220,1719753043320,-505.47,0.00013808,3]
[330745221,1719753043332,-546.63,0.00013808,3]
[330745222,1719753043343,-167.40532234,0.00013808,3]
[330745223,1719753043355,-500.0,0.00013808,3]
[330745224,1719753043366,-500.0,0.00013808,3]
[330745227,1719753043378,-500.0,0.00013808,3]
[330745229,1719753043390,-500.0,0.00013808,3]
[330745231,1719753043402,-500.0,0.00013808,3]
[330745233,1719753043414,-500.0,0.00013808,3]
[330745234,1719753043427,-500.0,0.00013808,3]
[330745235,1719753043439,-416.90131567,0.00013808,3]
[330745236,1719753043452,-500.0,0.00013808,3]
[330745237,1719753043462,-500.0,0.00013808,3]
[330745238,1719753043478,-500.0,0.00013808,3]
[330745239,1719753043489,-198.50764824,0.00013808,3]
[330745240,1719753043501,-355.23,0.00013808,3]
[330745241,1719753043513,-340.62,0.00013808,3]
[330745243,1719753043525,-500.0,0.00013808,3]
[330745245,1719753043536,-500.0,0.00013808,3]
[330745247,1719753043548,-536.19,0.00013808,3]
[330745248,1719753043560,-509.0,0.00013808,3]
[330745249,1719753043572,-516.41,0.00013808,3]
[330745250,1719753043584,-500.0,0.00013808,3]
[330745251,1719753043596,-500.0,0.00013808,3]
[330745252,1719753043608,-830.91,0.00013808,3]
[330745253,1719753043620,-500.0,0.00013808,3]
[330745254,1719753043632,-500.0,0.00013808,3]
[330745256,1719753043644,-500.0,0.00013808,3]
[330745258,1719753043656,-725.67,0.00013808,3]
[330745260,1719753043668,-610.42,0.00013808,3]
[330745261,1719753043680,-500.0,0.00013808,3]
[330745262,1719753043692,-500.0,0.00013808,3]
[330745263,1719753043704,-500.0,0.00013808,3]
[330745264,1719753043716,-500.0,0.00013808,3]
[330745265,1719753043728,-601.76,0.00013808,3]
[330745266,1719753043740,-500.0,0.00013808,3]
[330745267,1719753043757,-778.06,0.00013808,3]
[330745268,1719753043771,-500.0,0.00013808,3]
[330745269,1719753043782,-500.0,0.00013808,3]
[330745270,1719753043795,-500.0,0.00013808,3]
[330745271,1719753043806,-672.25,0.00013808,3]
[330745272,1719753043818,-172.32863907,0.00013808,3]
[330745273,1719753043830,-500.0,0.00013808,3]
[330745274,1719753043842,-500.0,0.00013808,3]
[330745275,1719753043853,-500.0,0.00013808,3]
[330745276,1719753043865,-500.0,0.00013808,3]
[330745277,1719753043876,-666.03,0.00013808,3]
[330745278,1719753043888,-500.0,0.00013808,3]
[330745279,1719753043899,-500.0,0.00013808,3]
[330745280,1719753043912,-560.8,0.00013808,3]
[330745281,1719753043923,-962.4,0.00013808,3]
[330745282,1719753043934,-539.22,0.00013808,3]
[330745283,1719753043946,-500.0,0.00013808,3]
[330745284,1719753043957,-500.0,0.00013808,3]
[330745285,1719753043969,-500.0,0.00013808,3]
[330745286,1719753043980,-257.57,0.00013808,3]
[330745287,1719753043992,-500.0,0.00013808,3]
[330745288,1719753044003,-500.0,0.00013808,3]
[330745289,1719753044014,-633.23,0.00013808,3]
[330745290,1719753044025,-500.0,0.00013808,3]
[330745291,1719753044037,-500.0,0.00013808,3]
[330745292,1719753044048,-575.51,0.00013808,3]
[330745293,1719753044060,-500.0,0.00013808,3]
[330745294,1719753044071,-500.0,0.00013808,3]
[330745295,1719753044082,-382.22840995,0.00013808,3]
[330745296,1719753044093,-500.0,0.00013808,3]
[330745297,1719753044105,-500.0,0.00013808,3]
[330745298,1719753044116,-500.0,0.00013808,3]
[330745299,1719753044128,-500.0,0.00013808,3]
[330745300,1719753044140,-500.0,0.00013808,3]
[330745301,1719753044151,-500.0,0.00013808,3]
[330745302,1719753044163,-500.0,0.00013808,3]
[330745303,1719753044174,-500.0,0.00013808,3]
[330745304,1719753044186,-500.0,0.00013808,3]
[330745305,1719753044198,-500.0,0.00013808,3]
[330745306,1719753044210,-871.08,0.00013808,3]
[330745307,1719753044221,-746.32,0.00013808,3]
[330745308,1719753044232,-625.62,0.00013808,3]
[330745309,1719753044244,-500.0,0.00013808,3]
[330745310,1719753044255,-677.3,0.00013808,3]
[330745311,1719753044267,-500.0,0.00013808,3]
[330745312,1719753044278,-500.0,0.00013808,3]
[330745313,1719753044290,-500.0,0.00013808,3]
[330745314,1719753044301,-500.0,0.00013808,3]
[330745315,1719753044313,-500.0,0.00013808,3]
[330745316,1719753044325,-535.02,0.00013808,3]
[330745317,1719753044336,-500.0,0.00013808,3]
[330745318,1719753044348,-500.0,0.00013808,3]
[330745319,1719753044360,-500.0,0.00013808,3]
[330745320,1719753044371,-500.0,0.00013808,3]
[330745321,1719753044381,-500.0,0.00013808,3]
[330745322,1719753044393,-715.73,0.00013808,3]
[330745323,1719753044403,-500.0,0.00013808,3]
[330745324,1719753044414,-500.0,0.00013808,3]
[330745325,1719753044425,-500.0,0.00013808,3]
[330745326,1719753044436,-500.0,0.00013808,3]
[330745327,1719753044448,-500.0,0.00013808,3]
[330745328,1719753044459,-788.9,0.00013808,3]
[330745329,1719753044470,-500.0,0.00013808,3]
[330745330,1719753044481,-500.0,0.00013808,3]
[330745331,1719753044492,-500.0,0.00013808,3]
[330745332,1719753044503,-500.0,0.00013808,3]
[330745333,1719753044514,-500.0,0.00013808,3]
[330745334,1719753044525,-500.0,0.00013808,3]
[330745335,1719753044536,-500.0,0.00013808,3]
[330745336,1719753044547,-500.0,0.00013808,3]
[330745337,1719753044558,-574.26,0.00013808,3]
[330745338,1719753044569,-873.83,0.00013808,3]
[330745339,1719753044580,-500.0,0.00013808,3]
[330745340,1719753044591,-500.0,0.00013808,3]
[330745341,1719753044603,-500.0,0.00013808,3]
[330745342,1719753044615,-690.7,0.00013808,3]
[330745343,1719753044627,-500.0,0.00013808,3]
[330745344,1719753044640,-500.0,0.00013808,3]
[330745345,1719753044651,-764.15,0.00013808,3]
[330745346,1719753044663,-500.0,0.00013808,3]
[330745347,1719753044674,-500.0,0.00013808,3]
[330745348,1719753044685,-500.0,0.00013808,3]
[330745349,1719753044697,-989.52,0.00013808,3]
[330745350,1719753044708,-500.0,0.00013808,3]
[330745351,1719753044719,-500.0,0.00013808,3]
[330745352,1719753044731,-500.0,0.00013808,3]
[330745353,1719753044740,-500.0,0.00013808,3]
[330745354,1719753044752,-500.0,0.00013808,3]
[330745355,1719753044762,-500.0,0.00013808,3]
[330745356,1719753044771,-500.0,0.00013808,3]
[330745357,1719753044781,-500.0,0.00013808,3]
[330745358,1719753044790,-500.0,0.00013808,3]
[330745359,1719753044800,-500.0,0.00013808,3]
[330745360,1719753044810,-1542.71,0.00013808,3]
[330745361,1719753044819,-500.0,0.00013808,3]
[330745362,1719753044830,-565.85,0.00013808,3]
[330745363,1719753044841,-500.0,0.00013808,3]
[330745364,1719753044851,-500.0,0.00013808,3]
[330745365,1719753044860,-874.54,0.00013808,3]
[330745366,1719753044870,-500.0,0.00013808,3]
[330745367,1719753044879,-500.0,0.00013808,3]
[330745368,1719753044888,-500.0,0.00013808,3]
[330745369,1719753044898,-500.0,0.00013808,3]
[330745370,1719753044907,-551.96,0.00013808,3]
[330745371,1719753044916,-542.93,0.00013808,3]
[330745372,1719753044926,-577.14,0.00013808,3]
[330745373,1719753044935,-543.47,0.00013808,3]
[330745374,1719753044944,-500.0,0.00013808,3]
[330745375,1719753044954,-576.27,0.00013808,3]
[330745376,1719753044963,-500.0,0.00013808,3]
[330745377,1719753045390,-788.07,0.00013808,3]
[330745378,1719753045415,-500.0,0.00013808,3]
[330745379,1719753045436,-500.0,0.00013808,2]
[330745380,1719753045455,-500.0,0.00013808,3]
[330745381,1719753045464,-500.0,0.00013808,3]
[330745382,1719753045473,-500.0,0.00013808,3]
[330745383,1719753045483,-500.0,0.00013808,3]
[330745384,1719753045493,-500.0,0.00013808,3]
[330745385,1719753045504,-500.0,0.00013808,3]
[330745386,1719753045514,-500.0,0.00013808,3]
[330745387,1719753045525,-500.0,0.00013808,3]
[330745388,1719753045535,-500.0,0.00013808,3]
[330745389,1719753045546,-525.02,0.00013808,3]
[330745390,1719753045556,-500.0,0.00013808,3]
[330745391,1719753045566,-500.0,0.00013808,3]
[330745392,1719753045575,-500.0,0.00013808,3]
[330745393,1719753045585,-500.0,0.00013808,3]
[330745394,1719753045596,-750.17,0.00013808,3]
[330745395,1719753045606,-985.9,0.00013808,3]
[330745396,1719753045618,-500.0,0.00013808,3]
[330745397,1719753045627,-591.2,0.00013808,3]
[330745398,1719753045637,-500.0,0.00013808,3]
[330745399,1719753045647,-500.0,0.00013808,3]
[330745400,1719753045657,-500.0,0.00013808,3]
[330745401,1719753045667,-677.89,0.00013808,3]
[330745402,1719753045676,-500.0,0.00013808,3]
[330745403,1719753045685,-500.0,0.00013808,3]
[330745404,1719753045695,-500.0,0.00013808,3]
[330745405,1719753045705,-515.93,0.00013808,3]
[330745406,1719753045714,-500.0,0.00013808,3]
[330745407,1719753045725,-524.89,0.00013808,3]
[330745409,1719753045734,-500.0,0.00013808,3]
[330745410,1719753045744,-661.36,0.00013808,3]
[330745411,1719753045760,-675.6,0.00013808,3]
[330745412,1719753045770,-500.0,0.00013808,3]
[330745414,1719753045779,-500.0,0.00013808,3]
[330745415,1719753045789,-867.77,0.00013808,3]
[330745416,1719753045802,-500.0,0.00013808,3]
[330745417,1719753045812,-500.0,0.00013808,3]
[330745418,1719753045822,-793.41,0.00013808,3]
[330745419,1719753045835,-500.0,0.00013808,3]
[330745420,1719753045846,-668.93,0.00013808,3]
[330745421,1719753045855,-500.0,0.00013808,3]
[330745422,1719753045864,-500.0,0.00013808,3]
[330745423,1719753045874,-500.0,0.00013808,3]
[330745424,1719753045885,-500.0,0.00013808,3]
[330745425,1719753045895,-500.0,0.00013808,3]
[330745426,1719753045905,-500.0,0.00013808,3]
[330745427,1719753045915,-538.25,0.00013808,3]
[330745428,1719753045925,-500.0,0.00013808,3]
[330745429,1719753045935,-500.0,0.00013808,3]
[330745430,1719753045944,-500.0,0.00013808,3]
[330745431,1719753045955,-500.0,0.00013808,3]
[330745432,1719753045964,-500.0,0.00013808,3]
[330745433,1719753045974,-500.0,0.00013808,3]
[330745434,1719753045984,-667.81,0.00013808,3]
[330745435,1719753045993,-641.56,0.00013808,3]
[330745436,1719753046003,-500.0,0.00013808,3]
[330745437,1719753046012,-500.0,0.00013808,3]
[330745438,1719753046022,-500.0,0.00013808,3]
[330745439,1719753046032,-238.57143148,0.00013808,3]
[330745440,1719753046041,-500.0,0.00013808,3]
[330745441,1719753046051,-500.0,0.00013808,3]
[330745442,1719753046060,-576.89971474,0.00013808,3]
[330745443,1719753046069,-928.56,0.00013808,3]
[330745444,1719753046078,-559.27,0.00013808,3]
[330745445,1719753046088,-500.0,0.00013808,3]
[330745446,1719753046097,-515.25,0.00013808,3]
[330745447,1719753046107,-500.0,0.00013808,3]
[330745448,1719753046116,-511.62,0.00013808,3]
[330745449,1719753046125,-500.0,0.00013808,3]
[330745450,1719753046135,-500.0,0.00013808,3]
[330745451,1719753046146,-582.35,0.00013808,3]
[330745452,1719753046157,-500.0,0.00013808,3]
[330745453,1719753046166,-500.0,0.00013808,3]
[330745454,1719753046177,-500.0,0.00013808,3]
[330745455,1719753046188,-509.03,0.00013808,3]
[330745456,1719753046199,-500.0,0.00013808,3]
[330745457,1719753046208,-1024.75,0.00013808,3]
[330745458,1719753046217,-500.0,0.00013808,3]
[330745459,1719753046228,-500.0,0.00013808,3]
[330745460,1719753046238,-500.0,0.00013808,3]
[330745461,1719753046249,-500.0,0.00013808,3]
[330745462,1719753046258,-865.61,0.00013808,3]
[330745463,1719753046267,-759.81,0.00013808,3]
[330745464,1719753046277,-862.04,0.00013808,3]
[330745465,1719753046289,-928.35922214,0.00013818,2]
[330745466,1719753046299,-1930.78338,0.0001384,2]
[330745467,1719753046309,-623.22,0.00013844,3]
[330745468,1719753046318,-3389.24,0.00013844,3]
[330745470,1719753046327,-500.0,0.00013844,3]
[330745472,1719753046337,-196.12684459,0.00013844,3]
[330745474,1719753046346,-2093.89,0.00013844,3]
[330745476,1719753046356,-1444.09,0.00013844,3]
[330745478,1719753046365,-1014.59,0.00013844,3]
[330745480,1719753046375,-500.0,0.00013844,3]
[330745482,1719753046384,-686.17,0.00013844,3]
[330745484,1719753046393,-953.45,0.00013844,3]
[330745486,1719753046402,-777.4,0.00013844,3]
[330745488,1719753046412,-1186.36,0.00013844,3]
[330745490,1719753046421,-1491.42,0.00013844,3]
[330745492,1719753046430,-1194.15,0.00013844,3]
[330745494,1719753046439,-1118.26,0.00013844,3]
[330745495,1719753046448,-592.43,0.00013844,3]
[330745497,1719753046458,-829.89,0.00013844,3]
[330745499,1719753046467,-4705.82,0.00013844,3]
[330745501,1719753046476,-500.0,0.00013844,3]
[330745503,1719753046486,-500.0,0.00013846,3]
[330745505,1719753046496,-500.0,0.00013846,3]
[330745507,1719753046506,-500.0,0.00013846,3]
[330745508,1719753046516,-500.0,0.00013846,3]
[330745509,1719753046527,-500.0,0.00013846,3]
[330745510,1719753046537,-633.13269683,0.00013846,3]
[330745511,1719753046547,-500.0,0.00013846,3]
[330745512,1719753046557,-500.0,0.00013846,3]
[330745513,1719753046566,-500.0,0.00013846,3]
[330745514,1719753046575,-500.0,0.00013846,3]
[330745515,1719753046585,-500.0,0.00013846,3]
[330745516,1719753046594,-500.0,0.00013846,3]
[330745517,1719753046603,-541.74777003,0.00013846,3]
[330745518,1719753046612,-500.0,0.00013846,3]
[330745519,1719753046623,-500.0,0.00013846,3]
[330745520,1719753046632,-500.0,0.00013846,3]
[330745521,1719753046642,-500.0,0.00013846,3]
[330745522,1719753046652,-500.0,0.00013846,3]
[330745523,1719753046661,-299.42834452,0.00013846,3]
[330745524,1719753046670,-649.04860809,0.00013846,3]
[330745525,1719753046679,-213.47414586,0.00013846,3]
[330745526,1719753046688,-500.0,0.00013846,3]
[330745527,1719753046699,-500.0,0.00013846,3]
[330745528,1719753046708,-500.0,0.00013846,3]
[330745529,1719753046717,-500.0,0.00013846,3]
[330745530,1719753046731,-200.0,0.00013846,3]
[330745531,1719753046740,-500.0,0.00013846,3]
[330745532,1719753046754,-500.0,0.00013846,3]
[330745533,1719753046764,-500.0,0.00013846,3]
[330745534,1719753046773,-500.0,0.00013846,3]
[330745535,1719753046783,-500.0,0.00013846,3]
[330745536,1719753046792,-224.6435509,0.00013846,3]
[330745537,1719753046803,-500.0,0.00013846,3]
[330745538,1719753046812,-500.0,0.00013846,3]
[330745539,1719753046823,-500.0,0.00013846,3]
[330745540,1719753046835,-500.0,0.00013846,3]
[330745541,1719753046844,-500.0,0.00013846,3]
[330745542,1719753046854,-500.0,0.00013846,3]
[330745543,1719753046863,-208.53283884,0.00013846,3]
[330745544,1719753046873,-500.0,0.00013846,3]
[330745545,1719753046883,-500.0,0.00013846,3]
[330745546,1719753046892,-500.0,0.00013846,3]
[330745547,1719753046901,-500.0,0.00013846,3]
[330745548,1719753046910,-500.0,0.00013846,3]
[330745549,1719753046920,-500.0,0.00013846,3]
[330745550,1719753046929,-1289.81,0.00013846,3]
[330745551,1719753046938,-520.39,0.00013846,3]
[330745552,1719753046949,-1333.21,0.00013883,3]
[330745553,1719753046958,-731.31,0.00013883,3]
[330745554,1719753046968,-1245.44,0.00013883,3]
[330745555,1719753046977,-950.23,0.00013883,3]
[330745556,1719753046987,-1409.5,0.00013883,3]
[330745557,1719753046997,-500.0,0.00013883,3]
[330745558,1719753047007,-1186.86,0.00013883,3]
[330745559,1719753047018,-1295.48,0.00013883,3]
[330745560,1719753047028,-500.0,0.00013883,3]
[330745561,1719753047039,-669.63,0.00013884,3]
[330745562,1719753047049,-689.75,0.00013884,3]
[330745563,1719753047058,-562.71,0.00013884,3]
[330745564,1719753047068,-500.0,0.00013884,3]
[330745565,1719753047077,-500.0,0.00013884,3]
[330745566,1719753047087,-500.0,0.00013884,3]
[330745567,1719753047096,-539.46,0.00013884,3]
[330745568,1719753047105,-691.92,0.00013884,3]
[330745569,1719753047115,-599.88,0.00013884,3]
[330745570,1719753047124,-707.3,0.00013884,3]
[330745571,1719753047134,-647.72,0.00013884,3]
[330745572,1719753047144,-500.0,0.00013884,3]
[330745573,1719753047153,-500.0,0.00013884,3]
[330745574,1719753047163,-500.0,0.00013884,3]
[330745575,1719753047173,-711.58,0.00013884,3]
[330745576,1719753047182,-713.83,0.00013884,3]
[330745577,1719753047192,-770.19,0.00013884,3]
[330745578,1719753047202,-500.0,0.00013884,3]
[330745579,1719753047211,-548.49,0.00013884,3]
[330745580,1719753047221,-502.5,0.00013884,3]
[330745581,1719753047230,-500.0,0.00013884,3]
[330745582,1719753047239,-500.0,0.00013884,3]
[330745583,1719753047251,-500.0,0.00013884,3]
[330745584,1719753047260,-500.0,0.00013884,3]
[330745585,1719753047269,-532.42,0.00013884,3]
[330745586,1719753047279,-524.51,0.00013884,3]
[330745587,1719753047289,-607.11,0.00013884,3]
[330745588,1719753047299,-909.04,0.00013884,3]
[330745589,1719753047309,-675.86,0.00013884,3]
[330745590,1719753047320,-733.88,0.00013884,3]
[330745591,1719753047329,-2080.1,0.00013884,3]
[330745592,1719753047339,-1064.91,0.00013884,3]
[330745593,1719753047348,-589.68,0.00013884,3]
[330745594,1719753047358,-500.0,0.00013884,3]
[330745595,1719753047367,-500.0,0.00013884,3]
[330745596,1719753047376,-796.53,0.00013884,3]
[330745597,1719753047385,-778.48,0.00013884,3]
[330745598,1719753047394,-660.9,0.00013884,3]
[330745599,1719753047403,-637.88,0.00013884,3]
[330745600,1719753047412,-1617.6,0.00013884,3]
[330745601,1719753047422,-560.33,0.00013884,3]
[330745602,1719753047431,-603.69,0.00013884,3]
[330745603,1719753047441,-621.72,0.00013884,3]
[330745604,1719753047451,-500.0,0.00013884,3]
[330745605,1719753047460,-706.24,0.00013884,3]
[330745606,1719753047470,-1173.21,0.00013884,3]
[330745607,1719753047480,-529.18,0.00013884,3]